bitfinex-derivatives/quotes_SOLF0:USTF0_20240902
["timestamp","ask_amount","ask_price","bid_price","bid_amount"]
[1725320192334,3.6984,135.2,135.19,0.05603367]
[1725320192531,12.7784,135.2,135.19,0.05603367]
[1725320192939,3.6996,135.16,135.13,3.60892467]
[1725320193134,9.08,135.18,135.14,1.47946904]
[1725320193331,3.6993,135.17,135.15,1.47946904]
[1725320193532,3.6993,135.17,135.13,3.7001]
[1725320193731,3.6993,135.17,135.14,1.47949861]
[1725320193933,3.75429676,135.17,135.14,1.53340134]
[1725320194332,3.75429676,135.17,135.14,0.05390273]
[1725320194532,3.6995,135.16,135.14,0.05390273]
[1725320194835,9.08,135.16,135.14,0.05390273]
[1725320195034,3.6997,135.15,135.14,0.05390273]
[1725320195735,12.7796,135.16,135.14,0.05390273]
[1725320199237,3.6996,135.16,135.14,0.05390273]
[1725320201445,3.75429676,135.17,135.14,0.05390273]
[1725320205954,3.6995,135.16,135.14,0.05390273]
[1725320212059,3.75419676,135.17,135.14,0.05390273]
[1725320212259,0.05499676,135.17,135.14,0.05390273]
[1725320213964,3.75419676,135.17,135.14,0.05390273]
[1725320222468,3.75419676,135.17,135.15,1.47953202]
[1725320222771,3.75419676,135.17,135.14,0.05390273]
[1725320222965,3.75419676,135.17,135.15,1.47952359]
[1725320223166,3.75419676,135.17,135.14,0.05390273]
[1725320223569,3.75419676,135.17,135.15,1.47953226]
[1725320223763,3.75419676,135.17,135.14,0.05390273]
[1725320224864,3.6995,135.16,135.14,0.05390273]
[1725320228575,0.05499676,135.17,135.15,1.4796139]
[1725320228775,0.02009025,135.15,135.14,3.75380273]
[1725320228977,0.02009025,135.15,135.14,5.23334483]
[1725320230578,0.02009025,135.15,135.14,5.23334808]
[1725320233483,0.02009025,135.15,135.14,1.53344808]
[1725320234173,0.02009025,135.15,135.14,0.05390273]
[1725320234375,0.02009025,135.15,135.14,1.53343499]
[1725320235286,0.02009025,135.15,135.14,5.23343499]
[1725320235477,0.02009025,135.15,135.14,1.53343499]
[1725320236579,0.02009025,135.15,135.14,0.05390273]
[1725320238983,0.02009025,135.15,135.14,3.01300452]
[1725320239180,0.02009025,135.15,135.14,4.49250563]
[1725320239779,0.02009025,135.15,135.14,3.01290495]
[1725320241484,0.02009025,135.15,135.14,1.53340384]
[1725320248191,0.02009025,135.15,135.14,0.05390273]
[1725320249981,0.02009025,135.15,135.14,1.53333151]
[1725320252994,0.02009025,135.15,135.14,5.23333151]
[1725320253290,0.02009025,135.15,135.14,14.31333151]
[1725320255301,0.02009025,135.15,135.14,12.83390273]
[1725320255598,0.02009025,135.15,135.14,14.31340727]
[1725320256793,0.02009025,135.15,135.14,1.53340727]
[1725320257494,0.02009025,135.15,135.14,0.05390273]
[1725320257798,0.02009025,135.15,135.14,3.01286557]
[1725320257998,0.02009025,135.15,135.14,1.53336728]
[1725320258396,0.02009025,135.15,135.14,5.23336728]
[1725320262196,0.02009025,135.15,135.14,14.31336728]
[1725320262796,0.02009025,135.15,135.14,14.31328579]
[1725320263405,0.02009025,135.15,135.14,15.79267728]
[1725320264509,0.02009025,135.15,135.14,17.27206877]
[1725320265802,0.02009025,135.15,135.14,8.19206877]
[1725320268198,0.02009025,135.15,135.14,5.23329422]
[1725320268799,0.02009025,135.15,135.14,1.53329422]
[1725320269307,0.02009025,135.15,135.14,0.05390273]
[1725320269712,0.02009025,135.15,135.14,1.53341411]
[1725320273908,0.02009025,135.15,135.14,1.53347523]
[1725320274407,0.02009025,135.15,135.14,0.05390273]
[1725320274612,0.02009025,135.15,135.14,1.53350897]
[1725320277102,0.02009025,135.15,135.14,0.05390273]
[1725320277414,0.02009025,135.15,135.14,1.53353427]
[1725320279314,3.71979025,135.15,135.14,1.53353427]
[1725320280712,0.02009025,135.15,135.14,0.05390273]
[1725320281521,0.02009025,135.15,135.14,1.53347672]
[1725320284020,0.02009025,135.15,135.14,0.05390273]
[1725320284225,0.02009025,135.15,135.14,1.53346697]
[1725320284619,0.02009025,135.15,135.14,0.05390273]
[1725320286022,0.02009025,135.15,135.14,1.53351757]
[1725320287225,3.71979025,135.15,135.14,1.53351757]
[1725320287528,12.79979025,135.15,135.14,1.53351757]
[1725320292027,0.02009025,135.15,135.09,98.47791916]
[1725320292225,0.02009025,135.15,135.12,9.08]
[1725320292426,0.02009025,135.15,135.12,12.86893245]
[1725320292627,0.02009025,135.15,135.14,3.7]
[1725320292824,0.02009025,135.15,135.14,12.78]
[1725320294227,0.04952719,135.16,135.15,12.7797]
[1725320294424,3.6985,135.2,135.15,9.08]
[1725320294626,12.73428719,135.22,135.15,3.6995]
[1725320294831,3.6986,135.2,135.15,3.6995]
[1725320295428,0.04887064,135.19,135.16,9.13411655]
[1725320295622,0.04887064,135.19,135.17,9.08]
[1725320296028,0.04887064,135.19,135.18,3.6989]
[1725320300934,1.3859,135.24,135.21,3.6981]
[1725320301228,9.08,135.26,135.21,3.6981]
[1725320301432,2.6442,135.28,135.2,9.08]
[1725320301433,87.05149746,135.27,135.2,9.08]
[1725320301934,87.05149746,135.27,135.22,0.0516357]
[1725320301935,0.05280961,135.25,135.22,0.0516357]
[1725320302434,0.05280961,135.25,135.22,3.7493357]
[1725320306038,0.05280961,135.25,135.23,3.6974]
[1725320306423,0.05280961,135.25,135.22,12.8292357]
[1725320308828,0.05280961,135.25,135.22,3.7492357]
[1725320316233,0.05280961,135.25,135.23,9.08]
[1725320321031,0.05280961,135.25,135.23,12.7775]
[1725320321437,3.75000961,135.25,135.22,0.0516357]
[1725320321650,9.13280961,135.25,135.22,0.0516357]
[1725320323137,3.6975,135.23,135.22,0.0516357]
[1725320323848,3.74990961,135.25,135.22,0.0516357]
[1725320324642,3.74990961,135.25,135.22,9.1316357]
[1725320325452,3.74990961,135.25,135.22,12.8293357]
[1725320325948,3.74990961,135.25,135.22,9.1316357]
[1725320327344,0.05280961,135.25,135.22,9.1316357]
[1725320327552,2.8271,135.33,135.24,9.08]
[1725320327842,4.2641,135.33,135.24,9.08]
[1725320328043,9.08,135.31,135.24,9.08]
[1725320328246,3.6961,135.29,135.25,3.6968]
[1725320328644,0.05243699,135.28,135.26,0.04944058]
[1725320328844,0.05243699,135.28,135.26,3.74614058]
[1725320329846,3.74863699,135.28,135.26,0.04944058]
[1725320330349,0.05243699,135.28,135.26,0.04944058]
[1725320337654,0.05243699,135.28,135.27,3.6964]
[1725320338362,0.05243699,135.28,135.27,7.37590162]
[1725320339159,72.53011821,135.39,135.27,3.67950162]
[1725320339456,1.3888,135.38,135.31,9.08]
[1725320339958,5.13002706,135.38,135.31,9.08]
[1725320340143,0.05544041,135.36,135.33,0.05232888]
[1725320342462,3.74964041,135.36,135.33,0.05232888]
[1725320342760,0.05544041,135.36,135.33,0.05232888]
[1725320342949,9.08,135.34,135.33,0.05232888]
[1725320343158,12.7744,135.35,135.33,0.05232888]
[1725320343655,3.6945,135.34,135.33,0.05232888]
[1725320344769,3.6952,135.32,135.28,3.6961]
[1725320345266,3.6952,135.32,135.26,12.70036347]
[1725320345267,9.08,135.33,135.27,3.6963]
[1725320345448,3.6954,135.31,135.27,3.6963]
[1725320345850,0.04708118,135.3,135.28,0.04733259]
[1725320346660,3.6959,135.29,135.28,0.04733259]
[1725320349056,0.04708118,135.3,135.28,0.04733259]
[1725320351066,3.74278118,135.3,135.28,0.04733259]
[1725320356669,0.04708118,135.3,135.28,0.04733259]
[1725320358171,9.12708118,135.3,135.28,0.04733259]
[1725320358568,3.6959,135.29,135.28,0.04733259]
[1725320365171,3.6968,135.26,135.22,3.6976]
[1725320366386,0.05400095,135.25,135.23,3.75247228]
[1725320366581,0.05400095,135.25,135.23,12.83247228]
[1725320368481,0.05400095,135.25,135.23,9.13497228]
[1725320369280,0.05400095,135.25,135.23,0.05497228]
[1725320369583,0.05400095,135.25,135.23,9.13497228]
[1725320370493,0.05400095,135.25,135.23,0.05497228]
[1725320370681,0.05400095,135.25,135.23,9.13497228]
[1725320374083,0.05400095,135.25,135.23,0.05497228]
[1725320374982,3.75120095,135.25,135.23,0.05497228]
[1725320375878,0.05400095,135.25,135.23,0.05497228]
[1725320378283,0.05400095,135.25,135.24,9.08]
[1725320386590,0.05400095,135.25,135.24,12.7773]
[1725320387383,0.05400095,135.25,135.24,9.08]
[1725320388397,0.05400095,135.25,135.24,12.7773]
[1725320391890,0.05400095,135.25,135.24,3.6973]
[1725320392097,0.05400095,135.25,135.24,12.7773]
[1725320393996,3.696,135.29,135.25,3.6968]
[1725320394200,1.3887,135.3,135.25,9.08]
[1725320394995,3.6959,135.29,135.26,0.04730454]
[1725320395198,3.7503964,135.29,135.26,0.04730454]
[1725320396095,0.0544964,135.29,135.27,9.08]
[1725320396696,0.0544964,135.29,135.27,12.7762]
[1725320398094,0.0544964,135.29,135.28,3.6962]
[1725320401398,0.0544964,135.29,135.27,3.6963]
[1725320401594,0.0544964,135.29,135.26,9.12730454]
[1725320401996,0.0544964,135.29,135.26,12.82380454]
[1725320402194,0.0544964,135.29,135.26,0.04730454]
[1725320402997,3.7504964,135.29,135.26,0.04730454]
[1725320403296,0.0544964,135.29,135.26,0.04730454]
[1725320403999,3.6964,135.28,135.26,0.04730454]
[1725320405806,12.7764,135.27,135.26,0.04730454]
[1725320412414,3.6974,135.24,135.08,7.4032]
[1725320412711,3.6974,135.24,135.18,9.08]
[1725320412915,3.6974,135.24,135.2,3.6982]
[1725320413117,3.6976,135.23,135.2,3.6982]
[1725320413312,3.75117897,135.23,135.2,3.6982]
[1725320413518,3.75117897,135.23,135.2,3.75143333]
[1725320415122,3.75117897,135.23,135.2,0.05323333]
[1725320415317,7.38763987,135.22,135.2,0.05323333]
[1725320415522,3.68963987,135.22,135.2,0.05323333]
[1725320415721,9.08,135.21,135.2,0.05323333]
[1725320417426,12.7781,135.21,135.2,0.05323333]
[1725320429627,3.6981,135.21,135.2,0.05323333]
[1725320429824,12.7781,135.21,135.2,0.05323333]
[1725320431420,3.6989,135.18,135.15,3.6996]
[1725320431625,12.7789,135.18,135.15,3.6996]
[1725320432427,12.83563514,135.18,135.15,3.75315569]
[1725320433934,12.83563514,135.18,135.15,0.05355569]
[1725320436429,12.83563514,135.18,135.15,3.75315569]
[1725320436430,9.13673514,135.18,135.15,3.75315569]
[1725320436630,0.05673514,135.18,135.15,0.05355569]
[1725320437233,0.05673514,135.18,135.16,3.6993]
[1725320438627,0.05673514,135.18,135.16,3.6995]
[1725320443734,0.05673514,135.18,135.17,3.6992]
[1725320446544,0.05673514,135.18,135.16,3.6993]
[1725320446730,0.05673514,135.18,135.15,0.05355569]
[1725320447232,0.05673514,135.18,135.16,3.6993]
[1725320451837,0.05673514,135.18,135.17,3.6992]
[1725320458949,0.05673514,135.18,135.17,5.0565]
[1725320462849,0.05673514,135.18,135.15,0.05355569]
[1725320463054,9.08,135.16,135.15,0.05355569]
[1725320465251,12.7795,135.16,135.15,0.05355569]
[1725320467958,3.6993,135.17,135.15,0.05355569]
[1725320468160,0.05673514,135.18,135.15,0.05355569]
[1725320468855,0.05673514,135.18,135.15,3.75315569]
[1725320469753,0.05673514,135.18,135.16,3.6995]
[1725320475559,0.05673514,135.18,135.15,3.75315569]
[1725320476262,3.75573514,135.18,135.15,0.05355569]
[1725320476961,12.83573514,135.18,135.15,0.05355569]
[1725320483661,3.6993,135.17,135.15,0.05355569]
[1725320484868,3.6995,135.16,135.15,0.05355569]
[1725320488966,12.7793,135.17,135.15,0.05355569]
[1725320490570,3.6995,135.16,135.15,0.05355569]
[1725320491565,12.7793,135.17,135.15,0.05355569]
[1725320491972,3.6993,135.17,135.15,0.05355569]
[1725320493379,12.83573514,135.18,135.15,0.05355569]
[1725320494170,3.6992,135.17,135.15,0.05355569]
[1725320495475,9.08,135.17,135.15,0.05355569]
[1725320496270,3.6995,135.16,135.15,0.05355569]
[1725320504977,12.7795,135.16,135.15,0.05355569]
[1725320505277,14.1078,135.16,135.15,0.05355569]
[1725320513585,3.7003,135.14,135.1,3.701]
[1725320513785,12.73038845,135.14,135.1,3.701]
[1725320514589,0.05325315,135.13,135.11,0.04880662]
[1725320514789,3.75365315,135.13,135.11,0.04880662]
[1725320515980,0.05325315,135.13,135.11,0.04880662]
[1725320516692,9.13325315,135.13,134.98,24.50789961]
[1725320516883,9.13325315,135.13,135.0,1.4255]
[1725320516884,9.08,135.08,135.0,1.4255]
[1725320517190,12.7817,135.08,135.05,3.7025]
[1725320517385,12.7817,135.08,135.02,9.08]
[1725320517789,0.05273518,135.06,135.04,0.05581426]
[1725320518094,0.05273518,135.06,135.04,3.75851426]
[1725320518301,0.05273518,135.06,135.04,0.05581426]
[1725320519188,0.05273518,135.06,135.04,3.75841426]
[1725320519688,0.05273518,135.06,135.05,3.7025]
[1725320520588,0.05273518,135.06,135.04,3.75851426]
[1725320520985,0.05273518,135.06,135.04,0.05581426]
[1725320522500,0.05273518,135.06,135.04,9.13581426]
[1725320524195,0.05273518,135.06,135.04,3.75841426]
[1725320526204,3.7013,135.1,135.05,3.7025]
[1725320527300,0.0532228,135.09,135.05,3.7025]
[1725320528395,0.0532228,135.09,135.06,9.08]
[1725320529199,0.0532228,135.09,135.07,3.7019]
[1725320530202,0.0532228,135.09,135.06,12.782]
[1725320530396,0.0532228,135.09,135.06,3.702]
[1725320532999,0.0532228,135.09,135.07,3.7017]
[1725320533996,0.0532228,135.09,135.08,3.7016]
[1725320538805,1.3283,135.16,135.07,12.76322207]
[1725320539008,4.93953445,135.16,135.07,12.71555621]
[1725320539204,9.08,135.14,135.07,12.71555621]
[1725320539404,3.7003,135.13,135.09,3.7013]
[1725320539802,0.05201665,135.12,135.1,0.05239765]
[1725320540810,0.05201665,135.12,135.1,3.75339765]
[1725320542210,0.05201665,135.12,135.11,3.7008]
[1725320544909,3.6999,135.15,135.11,3.7008]
[1725320545308,2.8052,135.21,135.11,9.08]
[1725320545503,9.08,135.19,135.11,9.08]
[1725320545710,9.08,135.19,135.13,9.08]
[1725320546016,0.04860067,135.17,135.15,0.04759771]
[1725320548516,0.04860067,135.17,135.15,3.74719771]
[1725320549611,0.04860067,135.17,135.16,3.6995]
[1725320550720,3.6983,135.21,135.17,3.699]
[1725320551715,3.74548124,135.2,135.17,3.699]
[1725320551923,9.08,135.18,135.15,0.04759771]
[1725320552121,0.04708124,135.2,135.15,0.04759771]
[1725320552122,9.08,135.17,135.15,0.04759771]
[1725320552415,3.6995,135.16,135.15,0.04759771]
[1725320555218,7.41047795,135.16,135.15,0.04759771]
[1725320560527,3.7004,135.13,135.1,3.701]
[1725320560827,12.7804,135.13,135.08,3.74093532]
[1725320561029,12.7804,135.13,135.09,3.7012]
[1725320561530,0.05632521,135.12,135.1,0.05032751]
[1725320562340,3.7008,135.11,135.1,0.05032751]
[1725320562641,12.7808,135.11,135.1,0.05032751]
[1725320563737,3.7008,135.11,135.1,0.05032751]
[1725320573748,12.7808,135.11,135.1,0.05032751]
[1725320573945,3.702,135.07,135.01,11.8424]
[1725320574148,3.702,135.07,135.01,15.54762498]
[1725320574851,0.04952868,135.05,135.03,0.05565947]
[1725320575850,0.04952868,135.05,135.03,3.75845947]
[1725320584859,0.04952868,135.05,135.03,0.05565947]
[1725320585259,3.75212868,135.05,135.03,0.05565947]
[1725320586969,0.04952868,135.05,135.03,9.13565947]
[1725320587155,1.3453,135.1,135.03,9.13565947]
[1725320587360,10.4253,135.1,135.03,9.13565947]
[1725320587557,3.7015,135.09,135.03,9.13565947]
[1725320587765,3.7015,135.09,135.05,3.7024]
[1725320588075,0.05643892,135.08,135.05,3.7024]
[1725320592670,3.75813892,135.08,135.05,3.7024]
[1725320593967,0.05643892,135.08,135.04,9.08]
[1725320594170,0.05643892,135.08,135.04,10.4189]
[1725320594471,0.05643892,135.08,135.05,3.7024]
[1725320595166,3.75823892,135.08,135.04,5.0414]
[1725320595581,0.05643892,135.08,135.05,3.7024]
[1725320596273,0.05643892,135.08,135.06,3.702]
[1725320598067,0.05643892,135.08,135.05,7.3196205]
[1725320600974,0.05643892,135.08,135.06,3.7021]
[1725320604462,0.05643892,135.08,135.05,3.6173205]
[1725320604867,3.75813892,135.08,135.05,3.6173205]
[1725320605973,0.05643892,135.08,135.06,3.702]
[1725320606470,0.05643892,135.08,135.05,3.6173205]
[1725320606677,0.05643892,135.08,135.04,1.3389]
[1725320606982,0.05643892,135.08,135.05,3.61880088]
[1725320607177,0.05643892,135.08,135.05,7.32120088]
[1725320607569,0.05643892,135.08,135.05,3.7024]
[1725320608478,3.75813892,135.08,135.05,3.7024]
[1725320611375,3.75813892,135.08,135.04,8.69286935]
[1725320614182,3.75813892,135.08,135.04,7.35396935]
[1725320616076,3.75813892,135.08,135.04,3.7026]
[1725320618887,3.7019,135.07,135.04,3.7026]
[1725320622588,3.75823892,135.08,135.05,3.7024]
[1725320624591,0.05643892,135.08,135.04,9.08]
[1725320625681,0.05643892,135.08,135.05,3.7023]
[1725320626294,3.75803892,135.08,135.05,3.7023]
[1725320630182,0.05643892,135.08,135.03,3.79131717]
[1725320630387,3.702,135.07,135.03,3.79131717]
[1725320631389,3.702,135.07,135.03,7.49411717]
[1725320631580,12.7823,135.06,135.03,0.05565947]
[1725320632291,9.08,135.06,135.03,3.75865947]
[1725320632487,9.08,135.06,135.03,0.05565947]
[1725320633285,3.7022,135.06,135.03,0.05565947]
[1725320634390,9.08,135.05,135.03,0.05565947]
[1725320636697,10.5133,135.07,135.03,3.75865947]
[1725320636995,9.08,135.07,135.03,0.05565947]
[1725320637694,9.13643892,135.08,135.03,0.05565947]
[1725320638391,12.782,135.07,135.03,0.05565947]
[1725320639095,3.7024,135.06,135.03,0.05565947]
[1725320640199,12.782,135.07,135.03,3.75865947]
[1725320640392,0.05643892,135.08,135.03,3.75865947]
[1725320640393,0.05643892,135.08,135.03,0.05565947]
[1725320641097,0.05643892,135.08,135.04,3.7026]
[1725320641491,0.05643892,135.08,135.04,9.08]
[1725320641894,0.05643892,135.08,135.05,3.7024]
[1725320642293,0.05643892,135.08,135.03,0.05565947]
[1725320642595,0.05643892,135.08,135.04,9.08]
[1725320643198,0.05643892,135.08,135.06,3.7021]
[1725320646399,0.05643892,135.08,135.05,3.7023]
[1725320650002,0.05643892,135.08,135.06,3.7022]
[1725320654904,0.05643892,135.08,135.07,3.7019]
[1725320658994,9.08,135.13,135.1,3.7011]
[1725320659908,1.3893,135.15,135.1,0.05646412]
[1725320660109,0.05326996,135.13,135.1,0.05646412]
[1725320660993,0.05326996,135.13,135.11,3.7006]
[1725320663805,0.05326996,135.13,135.11,3.7008]
[1725320664004,0.05326996,135.13,135.1,0.05646412]
[1725320664703,0.05326996,135.13,135.12,3.7005]
[1725320670111,0.05326996,135.13,135.11,3.7007]
[1725320673203,0.05326996,135.13,135.1,3.75746412]
[1725320673403,0.05326996,135.13,135.1,0.05646412]
[1725320674409,0.05326996,135.13,135.11,3.7008]
[1725320677519,0.05326996,135.13,135.12,3.7005]
[1725320678712,0.05326996,135.13,135.1,9.13646412]
[1725320678914,0.05326996,135.13,135.12,9.08]
[1725320680317,0.05326996,135.13,135.12,12.7805]
[1725320680823,1.381,135.19,135.12,9.08]
[1725320681119,5.0797,135.19,135.14,3.6998]
[1725320681720,0.05229148,135.18,135.15,3.75392156]
[1725320682115,0.05229148,135.18,135.17,3.6992]
[1725320682417,0.05229148,135.18,135.17,12.7792]
[1725320682815,1.3272,135.23,135.19,3.6985]
[1725320683315,1.3272,135.23,135.19,12.7785]
[1725320683715,0.05357339,135.22,135.2,0.05245207]
[1725320687415,0.05357339,135.22,135.2,3.75065207]
[1725320689721,0.05357339,135.22,135.2,0.05245207]
[1725320696846,3.75147339,135.22,135.2,0.05245207]
[1725320697541,0.05357339,135.22,135.2,0.05245207]
[1725320700135,3.75157339,135.22,135.2,0.05245207]
[1725320700539,9.08,135.21,135.12,96.72797679]
[1725320700741,9.08,135.21,135.13,9.08]
[1725320701542,0.04710651,135.18,135.16,3.75004829]
[1725320701741,0.05015522,135.18,135.16,3.75004829]
[1725320702751,0.05015522,135.18,135.16,0.05064829]
[1725320704651,3.74905522,135.18,135.16,0.05064829]
[1725320705151,0.05015522,135.18,135.16,0.05064829]
[1725320710556,0.05015522,135.18,135.16,3.75004829]
[1725320712660,0.05015522,135.18,135.17,3.6992]
[1725320712857,0.05015522,135.18,135.17,12.7792]
[1725320713057,10.4461,135.24,135.17,9.08]
[1725320713250,5.0635,135.24,135.19,12.7785]
[1725320713454,1.3683,135.3,135.21,9.08]
[1725320713655,80.82084061,135.27,135.21,9.08]
[1725320713962,3.6971,135.25,135.21,12.7779]
[1725320714262,3.75027611,135.25,135.23,0.04866806]
[1725320714663,0.05317611,135.25,135.23,0.04866806]
[1725320716554,0.05317611,135.25,135.24,3.6973]
[1725320718258,0.05317611,135.25,135.23,3.74616806]
[1725320720359,0.05317611,135.25,135.23,0.04866806]
[1725320728063,9.13317611,135.25,135.23,0.04866806]
[1725320728572,5.1283,135.24,135.23,0.04866806]
[1725320730768,3.6979,135.22,135.19,3.6986]
[1725320731471,2.6743,135.3,135.21,9.08]
[1725320731673,9.08,135.28,135.21,9.08]
[1725320731967,0.05484233,135.26,135.23,0.05293838]
[1725320734377,3.75164233,135.26,135.23,3.75043838]
[1725320735677,0.05484233,135.26,135.23,3.75043838]
[1725320735976,0.05484233,135.26,135.24,3.6973]
[1725320737579,0.05484233,135.26,135.25,3.697]
[1725320739473,3.6957,135.3,135.26,3.6967]
[1725320739668,3.6957,135.3,135.26,12.7767]
[1725320740072,12.73766702,135.31,135.25,12.7769]
[1725320740378,0.05539797,135.29,135.27,0.04775523]
[1725320740677,3.75139797,135.29,135.27,0.04775523]
[1725320744275,0.05539797,135.29,135.27,0.04775523]
[1725320745085,3.75129797,135.29,135.27,0.04775523]
[1725320750187,3.6962,135.28,135.27,0.04775523]
[1725320750383,12.7762,135.28,135.27,0.04775523]
[1725320759687,12.7762,135.28,135.15,7.3992]
[1725320759984,12.7762,135.28,135.1,21.81847911]
[1725320759985,1.4476,135.3,135.1,18.41456892]
[1725320760186,9.08,135.15,135.1,18.41456892]
[1725320760386,3.7,135.14,135.1,18.41456892]
[1725320760588,9.08,135.14,135.1,18.41456892]
[1725320760796,3.61545612,135.15,135.11,0.05445728]
[1725320760797,12.7805,135.12,135.11,0.05445728]
[1725320761391,21.64097042,135.12,135.11,0.05445728]
[1725320761998,12.56097042,135.12,135.11,0.05445728]
[1725320763096,3.7005,135.12,135.11,0.05445728]
[1725320763299,12.56105715,135.12,135.11,0.05445728]
[1725320763605,3.7005,135.12,135.11,0.05445728]
[1725320763904,12.5611977,135.12,135.11,0.05445728]
[1725320764293,3.7005,135.12,135.11,0.05445728]
[1725320764905,22.74,135.12,135.03,103.60864744]
[1725320765209,22.74,135.1,135.03,103.60864744]
[1725320765407,3.7024,135.06,135.03,103.60864744]
[1725320765905,3.75072121,135.06,135.03,103.66155003]
[1725320776115,22.74,135.09,135.03,103.66155003]
[1725320776320,22.74,135.11,135.03,103.66155003]
[1725320776513,22.74,135.11,135.03,103.60864744]
[1725320776814,22.74,135.11,135.03,107.31154744]
[1725320776815,3.7016,135.09,135.03,107.31154744]
[1725320777220,0.04802474,135.07,135.05,0.05529225]
[1725320780615,3.75002474,135.07,135.05,0.05529225]
[1725320782319,0.04802474,135.07,135.05,0.05529225]
[1725320787127,3.74992474,135.07,135.05,0.05529225]
[1725320788526,3.7022,135.06,135.05,0.05529225]
[1725320790727,12.85002474,135.07,135.05,0.05529225]
[1725320790927,9.14802474,135.07,135.05,0.05529225]
[1725320792235,0.04802474,135.07,135.05,0.05529225]
[1725320796839,12.85022474,135.07,135.05,0.05529225]
[1725320800840,3.7022,135.06,135.05,0.05529225]
[1725320802429,12.8022,135.06,135.05,0.05529225]
[1725320808742,9.1,135.06,135.05,0.05529225]
[1725320808934,12.85012474,135.07,135.05,0.05529225]
[1725320809239,0.04802474,135.07,135.05,0.05529225]
[1725320809539,0.04802474,135.07,135.06,3.7022]
[1725320811336,3.701,135.11,135.07,3.7018]
[1725320811530,12.801,135.11,135.07,3.7018]
[1725320812447,0.05654081,135.1,135.07,3.7018]
[1725320819244,0.05654081,135.1,135.05,0.05529225]
[1725320819451,9.1,135.08,135.05,0.05529225]
[1725320819845,12.8022,135.06,135.05,0.05529225]
[1725320820852,3.7022,135.06,135.05,0.05529225]
[1725320821049,12.8022,135.06,135.05,0.05529225]
[1725320822557,9.1,135.06,135.05,0.05529225]
[1725320824557,12.85692611,135.07,135.05,0.05529225]
[1725320824957,3.75692611,135.07,135.05,0.05529225]
[1725320825161,12.85692611,135.07,135.05,0.05529225]
[1725320828148,8.86196438,135.06,135.05,0.05529225]
[1725320828963,12.85692611,135.07,135.05,0.05529225]
[1725320829457,8.86190063,135.06,135.05,0.05529225]
[1725320832765,8.86193275,135.06,135.05,0.05529225]
[1725320836164,9.15492611,135.07,135.05,0.05529225]
[1725320836369,8.86175785,135.06,135.05,0.05529225]
[1725320836569,0.05492611,135.07,135.05,0.05529225]
[1725320836770,0.05492611,135.07,135.06,3.7022]
[1725320842372,7.97386928,135.15,135.05,9.15529225]
[1725320842571,8.86031767,135.14,135.07,9.1]
[1725320842873,8.86031767,135.13,135.07,9.1]
[1725320843083,8.86031767,135.12,135.09,3.7011]
[1725320843376,8.86031767,135.11,135.09,3.72398687]
[1725320843566,0.05552649,135.12,135.09,3.72398687]
[1725320843567,0.05552649,135.12,135.1,3.7009]
[1725320843771,0.05552649,135.12,135.09,3.72398687]
[1725320845375,0.05552649,135.12,135.11,3.7008]
[1725320849278,0.05552649,135.12,135.11,7.33850904]
[1725320849573,0.05552649,135.12,135.11,3.7008]
[1725320850079,9.15552649,135.12,135.09,0.04671078]
[1725320850281,9.1,135.1,135.09,0.04671078]
[1725320851005,12.8011,135.1,135.09,0.04671078]
[1725320852494,9.1,135.1,135.09,0.04671078]
[1725320856301,9.1,135.1,135.05,3.7024]
[1725320856501,9.1,135.08,135.05,3.7024]
[1725320856902,9.1,135.08,135.04,7.35147869]
[1725320857299,0.04965072,135.07,135.05,3.75201111]
[1725320869520,0.04965072,135.07,135.05,0.04961111]
[1725320871111,9.1,135.06,135.05,0.04961111]
[1725320872418,12.8022,135.06,135.05,0.04961111]
[1725320874418,21.66422857,135.06,135.05,0.04961111]
[1725320874615,12.56422857,135.06,135.05,0.04961111]
[1725320874820,3.7022,135.06,135.05,0.04961111]
[1725320875515,12.56450181,135.06,135.05,0.04961111]
[1725320875717,3.7022,135.06,135.05,0.04961111]
[1725320877819,12.85175072,135.07,135.05,0.04961111]
[1725320879624,0.04965072,135.07,135.05,0.04961111]
[1725320881124,0.04965072,135.07,135.05,3.75201111]
[1725320883920,0.04965072,135.07,135.05,0.04961111]
[1725320889628,3.75155072,135.07,135.05,0.04961111]
[1725320891229,9.1,135.06,135.05,0.04961111]
[1725320893427,17.96220711,135.06,135.05,0.04961111]
[1725320893731,9.1,135.06,135.05,0.04961111]
[1725320898640,12.8022,135.06,135.05,0.04961111]
[1725320900732,21.66469799,135.06,135.05,0.04961111]